[Event "4th Tata Steel India Rapid Women 2022"]
[Site "Kolkota"]
[Date "2022.11.30"]
[Round "4.5"]
[White "Koneru, Humpy"]
[Black "Harika, Dronavalli"]
[Result "1/2-1/2"]
[ECO "A42"]
[WhiteElo "2574"]
[BlackElo "2507"]
[Annotator "TA"]
[PlyCount "71"]
[EventDate "2022.11.29"]
[EventType "tourn"]
[EventCountry "IND"]
[SourceTitle "playchess.com"]
[Source "ChessBase"]
[SourceQuality "1"]
[TimeControl "900+10"]

{[%evp 13,71,0,23,-8,0,-18,-8,-59,-79,-83,-74,-82,-23,-52,-33,-34,-27,-24,11,4,12,10,12,12,14,12,13,12,12,8,10,12,8,10,11,9,10,7,25,32,25,10,11,10,29,12,12,12,14,0,0,0,6,9,9,8,8,14,15,0]} 1. d4 {[%emt 0:00:02]} g6 {[%emt 0:00:02]} 2. c4 {[%emt 0:00:55]} Bg7 {[%emt 0:00:02]} 3. Nc3 {[%emt 0:00:14]} d6 {[%emt 0:00:03]} 4. e4 {[%emt 0:00:33]} e5 {[%emt 0:00:10]} 5. Be3 {[%emt 0:02:01]} exd4 {[%emt 0:01:33]} 6. Bxd4 {[%emt 0:00:08]} Nf6 {[%emt 0:00:02]} 7. f3 {[%emt 0:02:30]} O-O {[%emt 0:00:33]} 8. Qd2 {[%emt 0:00:10] A42: Modern Defence: Averbakh Variation.} Nc6 {[%emt 0:01:30] [#] Threatens to win with ...Nxd4.} 9. Be3 {[%emt 0:00:36]} ({Much weaker is} 9. Nge2 Nxd4 10. Nxd4 Nd7 $15) 9... Be6 {[%emt 0:00:54]} 10. Nd5 {[%emt 0:00:53]} ({White should try} 10. b3 $11) 10... Ne5 $15 {[%emt 0:01:46]} 11. Rc1 {[%emt 0:04:23]} c6 {[%emt 0:01:26]} 12. Nf4 {[%emt 0:00:13]} Qe7 {[%emt 0:02:05]} ({Black should play} 12... Re8 $17 {Hoping for ...d5.} 13. Nxe6 fxe6) 13. Be2 $1 $11 {[%emt 0:00:53] Prevents d5.} Rfd8 {[%emt 0:01:45] [#] White must now prevent ...d5.} (13... Rfe8 $5) 14. Nxe6 $146 {[%emt 0:00:38]} ({Predecessor:} 14. Qb4 a5 15. Qa3 Qe8 16. Nxe6 Qxe6 17. Nh3 d5 18. cxd5 cxd5 19. Nf2 dxe4 20. fxe4 {0-1 (32) Rumjantsev,J (1990)-Kukk,S (2105) Tallinn 2010}) 14... Qxe6 {[%emt 0:01:03]} 15. Nh3 {[%emt 0:00:35]} d5 {[%emt 0:01:20]} (15... Qe7 $5 {[%cal Rd6d5]} 16. Nf4 d5 17. exd5 (17. cxd5 g5 $15) 17... Re8 $11) 16. cxd5 {[%emt 0:01:02]} cxd5 {[%emt 0:00:04]} 17. Nf4 {[%emt 0:00:19]} Qd7 {[%emt 0:00:25]} 18. Nxd5 Nxd5 19. exd5 {[%emt 0:00:18]} Qxd5 {[%emt 0:00:12]} 20. Qxd5 {[%emt 0:00:15]} Rxd5 {[%emt 0:00:01]} 21. Kf2 {[%emt 0:00:31]} Nd3+ {[%emt 0:00:15]} 22. Bxd3 {[%emt 0:00:07]} Rxd3 {[%emt 0:00:02]} 23. Rhd1 {[%emt 0:00:24]} Rxd1 {[%emt 0:00:13]} 24. Rxd1 {[%emt 0:00:01]} Bxb2 {[%emt 0:01:14][%mdl 4096] Endgame KRB-KRB} 25. Rb1 {[%emt 0:00:02]} Bf6 {[%emt 0:00:31]} 26. Rxb7 {[%emt 0:00:03]} a6 {[%emt 0:00:01]} 27. Rb6 {[%emt 0:01:07]} Bd8 {[%emt 0:01:20]} 28. Rc6 {[%emt 0:00:14]} Be7 {[%emt 0:00:03]} 29. Bh6 {[%emt 0:00:28]} a5 {[%emt 0:00:07] The position is equal.} 30. a4 {[%emt 0:00:03]} Rd8 {[%emt 0:00:33]} 31. Ra6 {[%emt 0:00:10]} Bb4 {[%emt 0:00:01]} 32. g4 {[%emt 0:00:10]} Re8 {[%emt 0:00:03]} 33. h4 {[%emt 0:00:10]} Be1+ {[%emt 0:00:02]} 34. Kf1 {[%emt 0:00:08]} Bc3 {[%emt 0:00:03]} 35. Rc6 {[%emt 0:00:07]} Bb4 {[%emt 0:00:06]} 36. Ra6 {[%emt 0:00:11] Weighted Error Value: White=0.07 (flawless) /Black=0.10 (very precise)} 1/2-1/2

[Event "4th Tata Steel India Rapid Women 2022"]
[Site "Kolkota"]
[Date "2022.11.30"]
[Round "5.1"]
[White "Vaishali, Rameshbabu"]
[Black "Muzychuk, Mariya"]
[Result "1/2-1/2"]
[ECO "C50"]
[WhiteElo "2454"]
[BlackElo "2528"]
[Annotator "TA"]
[PlyCount "79"]
[EventDate "2022.11.29"]
[EventType "tourn"]
[EventCountry "IND"]
[SourceTitle "playchess.com"]
[Source "ChessBase"]
[SourceQuality "1"]
[TimeControl "900+10"]

{[%evp 10,79,29,26,29,25,25,-7,14,-17,42,38,40,37,42,33,62,58,63,77,66,60,70,52,59,39,37,43,87,0,0,0,71,-5,-14,-21,0,0,0,-3,0,0,0,-71,-56,-74,-81,-90,-37,-64,-32,-39,-27,-39,0,0,0,0,0,0,0,0,0,0,0,0,0,0,0,0,0,0]} 1. e4 {[%emt 0:00:05]} e5 {[%emt 0:00:04]} 2. Nf3 {[%emt 0:00:02]} Nc6 {[%emt 0:00:01]} 3. Bc4 {[%emt 0:00:03]} Bc5 {[%emt 0:00:15]} 4. d3 {[%emt 0:00:10]} Nf6 {[%emt 0:00:07]} 5. Bg5 {[%emt 0:00:08]} h6 {[%emt 0:00:41]} 6. Bh4 {[%emt 0:00:02]} Be7 {[%emt 0:00:35] C50: Hungarian Defence and Giuoco Pianissimo.} 7. Bg3 {[%emt 0:00:53]} d6 {[%emt 0:00:15]} 8. c3 {[%emt 0:00:11]} O-O {[%emt 0:00:42]} (8... Na5 $5 {[%cal Ra5c4]}) 9. Nbd2 {[%emt 0:01:09]} Be6 {[%emt 0:01:13] [#]} (9... Na5 $11) 10. Bxe6 $146 {[%emt 0:01:00]} ({Predecessor:} 10. O-O a5 11. Bb5 Nh5 12. d4 Nxg3 13. hxg3 Na7 14. Bc4 Bg4 15. Be2 Nc6 16. dxe5 dxe5 {1-0 (47) Nisipeanu,L (2687)-Bosiocic,M (2607) Austria 2017}) 10... fxe6 {[%emt 0:00:01]} 11. b4 {[%emt 0:00:33][%cal Bb2b4,Bb4b5][%mdl 32]} Qd7 {[%emt 0:00:36]} 12. O-O {[%emt 0:00:36]} Kh7 {[%emt 0:00:53]} 13. a4 {[%emt 0:00:22]} g6 {[%emt 0:00:29]} 14. d4 {[%emt 0:01:01]} exd4 {[%emt 0:00:22]} 15. b5 {[%emt 0:00:05]} Na5 {[%emt 0:02:34]} 16. cxd4 {[%emt 0:00:10]} (16. e5 $5 {[%cal Re5f6]} Ne8 17. exd6 (17. cxd4 d5 $11) (17. Nxd4 Ng7 $11) 17... cxd6 18. cxd4 $14 (18. Nxd4 Ng7 $11)) 16... Nh5 {[%emt 0:00:25]} 17. d5 {[%emt 0:04:22]} exd5 {[%emt 0:02:01]} 18. exd5 {[%emt 0:00:03]} a6 {[%emt 0:00:55]} 19. Rb1 {[%emt 0:01:23]} (19. bxa6 $16 bxa6 20. Re1) 19... axb5 $11 {[%emt 0:00:29]} 20. axb5 {[%emt 0:00:15]} Nf6 {[%emt 0:00:53]} (20... Rf5 $1 $11) 21. Nb3 {[%emt 0:04:42]} (21. Re1 $16) 21... Qxb5 {[%emt 0:02:13]} 22. Re1 {[%emt 0:00:56]} Rf7 {[%emt 0:01:35]} (22... Rfe8 {is more complex.} 23. Nh4 Nxd5 24. Nxg6 Bf6) 23. Nxa5 {[%emt 0:00:25]} Qxa5 {[%emt 0:00:01]} 24. Rxb7 {[%emt 0:00:10]} Nxd5 {[%emt 0:00:56]} 25. h4 {[%emt 0:00:08][%cal Oh4h5] h5! is the strong threat.} Nf6 {[%emt 0:00:22] Against h5} 26. Qb3 {[%emt 0:00:19]} (26. Qc2 $11 {remains equal.}) 26... Qd5 $1 $17 {[%emt 0:00:08]} 27. Qb1 {[%emt 0:00:13] [#]} Bf8 $1 {[%emt 0:00:05]} 28. Rd1 {[%emt 0:00:11] [#]} Qe4 {[%emt 0:00:20]} (28... Ra1 $1 $17 29. Qxa1 Qxb7) 29. Qb3 {[%emt 0:00:02]} Kg7 {[%emt 0:00:07]} (29... Re7 $5 {[%cal Re4a4]}) 30. Nd4 {[%emt 0:00:17] Threatens to win with Ne6+.} Re8 {[%emt 0:00:16] Inhibits Ne6+.} 31. f3 {[%emt 0:00:10]} Qd5 {[%emt 0:00:19]} 32. Qxd5 {[%emt 0:00:10] The position is equal.} (32. Qb1 {feels hotter.} c5 33. Rxf7+ Qxf7 34. Nb5) 32... Nxd5 {[%emt 0:00:01]} 33. Nb5 {[%emt 0:00:02]} Ne3 {[%emt 0:00:17]} 34. Rc1 {[%emt 0:00:03]} Nf5 {[%emt 0:00:15]} 35. Rcxc7 {[%emt 0:00:08]} Rxc7 {[%emt 0:00:08]} 36. Rxc7+ {[%emt 0:00:09]} Re7 {[%emt 0:00:01] aiming for ...Rxc7.} 37. Rxe7+ {[%emt 0:00:26]} Bxe7 {[%emt 0:00:01]} 38. Bf2 {[%emt 0:00:01]} Bxh4 {[%emt 0:00:27]} 39. Bxh4 {[%emt 0:00:02]} Nxh4 {[%emt 0:00:01]} 40. Nxd6 {[%emt 0:00:01] Weighted Error Value: White=0.15 (very precise) /Black=0.16 (very precise)} 1/2-1/2

[Event "4th Tata Steel India Rapid Women 2022"]
[Site "Kolkota"]
[Date "2022.11.30"]
[Round "5.2"]
[White "Kiolbasa, Oliwia"]
[Black "Muzychuk, Anna"]
[Result "1/2-1/2"]
[ECO "C84"]
[WhiteElo "2406"]
[BlackElo "2525"]
[Annotator "TA"]
[PlyCount "118"]
[EventDate "2022.11.29"]
[EventType "tourn"]
[EventCountry "IND"]
[SourceTitle "playchess.com"]
[Source "ChessBase"]
[SourceQuality "1"]
[TimeControl "900+10"]

{[%evp 15,118,17,11,11,16,9,19,10,27,10,24,10,15,15,0,0,0,0,54,27,28,31,34,37,32,18,30,29,36,29,21,19,29,8,8,8,12,11,17,6,73,66,113,112,133,116,176,145,131,143,166,166,161,147,178,177,226,179,220,227,267,267,267,158,267,267,268,276,284,284,284,284,284,284,343,301,325,198,187,8,8,8,8,8,8,8,8,8,8,8,8,0,0,0,0,0,0,0,0,0,0,0,0,0,0]} 1. e4 {[%emt 0:00:03]} e5 {[%emt 0:00:08]} 2. Nf3 {[%emt 0:00:02]} Nc6 {[%emt 0:00:00]} 3. Bb5 {[%emt 0:00:03]} a6 {[%emt 0:00:01]} 4. Ba4 {[%emt 0:00:02]} Nf6 {[%emt 0:00:01]} 5. O-O {[%emt 0:00:04]} Be7 {[%emt 0:00:06]} 6. d3 {[%emt 0:00:09]} b5 {[%emt 0:00:07]} 7. Bb3 {[%emt 0:00:03]} d6 {[%emt 0:00:01]} 8. a4 {[%emt 0:00:04]} Bd7 {[%emt 0:00:05] 8...Bd7 scores better than 8...b4.} 9. c3 {[%emt 0:00:54] C84: Closed Ruy Lopez: Unusual White 6th moves.} O-O {[%emt 0:00:05]} 10. Bc2 {[%emt 0:00:09]} Re8 {[%emt 0:01:35]} 11. Re1 {[%emt 0:00:12]} h6 {[%emt 0:00:16]} 12. h3 {[%emt 0:00:58]} Bf8 {[%emt 0:00:20]} 13. Nbd2 {[%emt 0:02:43][%cal Bb1d2,Bd2f1,Bf1e3][%mdl 32]} Rb8 {[%emt 0:00:14]} 14. Nf1 {[%emt 0:02:18]} b4 {[%emt 0:01:04]} 15. a5 {[%emt 0:01:57] [#]} bxc3 $146 {[%emt 0:02:44]} ({Predecessor:} 15... d5 16. exd5 Nxd5 17. Bb3 Nf6 18. Bc4 bxc3 19. bxc3 Qc8 20. Ng3 Be6 21. Nxe5 Nxe5 22. Rxe5 Bxc4 23. Rxe8 Qxe8 24. dxc4 {½-½ (43) Jones,G (2657)-Cheparinov,I (2659) Toledo 2021}) 16. bxc3 {[%emt 0:00:03]} g6 {[%emt 0:00:14]} (16... Rb5 $11) 17. Ne3 {[%emt 0:00:58]} Bg7 {[%emt 0:00:50]} 18. Bb3 {[%emt 0:00:15]} Qc8 {[%emt 0:01:15]} 19. Bd2 {[%emt 0:03:47]} Nd8 {[%emt 0:02:50]} 20. Nd5 {[%emt 0:01:08]} Nxd5 {[%emt 0:00:06]} 21. Bxd5 {[%emt 0:00:01]} c6 {[%emt 0:01:37]} 22. Bc4 {[%emt 0:00:01]} Be6 {[%emt 0:00:01]} 23. Qa4 {[%emt 0:01:04]} Bxc4 {[%emt 0:00:27]} 24. Qxc4 {[%emt 0:00:01]} Rb5 {[%emt 0:00:05]} 25. Reb1 {[%emt 0:00:52]} Nb7 {[%emt 0:01:48]} 26. Rxb5 {[%emt 0:00:08]} cxb5 {[%emt 0:00:02]} 27. Qd5 {[%emt 0:00:08]} Qc7 {[%emt 0:00:58]} (27... Re7 $11) 28. Ne1 $16 {[%emt 0:00:28][%cal Bf3e1,Be1c2,Bc2b4,Bb4d5][%mdl 32]} Nxa5 {[%emt 0:02:10]} (28... Nc5 $14 {deserves consideration.}) 29. Nc2 {[%emt 0:00:02]} Rc8 {[%emt 0:00:30]} 30. Nb4 {[%emt 0:00:09] White is more active.} Qb6 {[%emt 0:00:06]} (30... Bf8 $16 {keeps fighting.} 31. Qa2 (31. Nxa6 Qb6 $16) 31... Nc6) 31. Qa2 {[%emt 0:00:24]} Nc6 {[%emt 0:00:04]} 32. Nd5 $36 {[%emt 0:00:15][%mdl 2048] White is really pushing.} (32. Nxa6 $2 {perishes.} Ra8 33. Kh2 Nb8 $19) ({But not} 32. Qxa6 $6 Qxa6 33. Rxa6 Nxb4 34. cxb4 Rc2 $14) 32... Qb7 {[%emt 0:00:25]} 33. Qxa6 {[%emt 0:00:11]} Qxa6 {[%emt 0:00:03]} 34. Rxa6 {[%emt 0:00:01]} Kh7 {[%emt 0:00:12]} 35. Rb6 {[%emt 0:00:36]} Nd8 {[%emt 0:00:04]} (35... Bf8 $142 36. Rxb5 Rb8) 36. Rxb5 {[%emt 0:00:28]} Ne6 {[%emt 0:00:02]} 37. Rb7 {[%emt 0:00:13]} Nc5 {[%emt 0:00:16]} 38. Rxf7 {[%emt 0:00:02]} Nxd3 {[%emt 0:00:01]} 39. Nf6+ {[%emt 0:00:22]} Kh8 {[%emt 0:00:01] [#]} 40. Bxh6 $1 {[%emt 0:00:01][%csl Gf7][%cal Rh6g7][%mdl 512]} Bxf6 {[%emt 0:00:09]} 41. Rxf6 $18 {[%emt 0:00:01][%mdl 4096] Endgame KRB-KRN} Kh7 {[%emt 0:00:15]} 42. Be3 {[%emt 0:00:11]} ({Don't do} 42. Rxd6 Nxf2 43. Kxf2 Kxh6 $18) 42... Rc6 {[%emt 0:00:18]} 43. Rf7+ {[%emt 0:00:11]} Kg8 {[%emt 0:00:01]} 44. Rd7 {[%emt 0:00:08]} Nb2 {[%emt 0:00:16]} 45. h4 {[%emt 0:00:15]} Na4 {[%emt 0:00:15]} 46. g4 {[%emt 0:00:27][%cal Oc3c4]} Nxc3 {[%emt 0:00:05]} 47. h5 $2 {[%emt 0:00:06]} (47. Bh6 $18) 47... gxh5 $1 $11 {[%emt 0:00:12] The position is equal.} 48. gxh5 {[%emt 0:00:02]} (48. Rd8+ {simplifies} Kh7 49. gxh5 Nxe4 50. Rd7+) 48... Nxe4 {[%emt 0:00:01]} 49. h6 {[%emt 0:00:02]} Nf6 {[%emt 0:00:19]} 50. Rg7+ {[%emt 0:00:17]} Kh8 $1 {[%emt 0:00:01]} 51. Rg6 {[%emt 0:00:21]} Ne4 {[%emt 0:00:32]} 52. Kg2 {[%emt 0:00:07]} Rc8 {[%emt 0:00:07]} 53. f3 {[%emt 0:00:14]} Rc3 {[%emt 0:00:11]} 54. fxe4 {[%emt 0:00:16] Bg5 would kill now.} Rxe3 {[%emt 0:00:01]} 55. Rxd6 {[%emt 0:00:00]} Rxe4 {[%emt 0:00:01] KR-KR} 56. Kf3 {[%emt 0:00:02]} Rf4+ {[%emt 0:00:02]} 57. Kg3 {[%emt 0:00:01]} Kh7 {[%emt 0:00:00]} 58. Re6 {[%emt 0:00:03]} Rf8 {[%emt 0:00:04]} 59. Rxe5 Kxh6 {[%emt 0:00:00] Black defended with fortune.   Weighted Error Value: White=0.14 (very precise) /Black=0.13 (very precise)} 1/2-1/2

[Event "4th Tata Steel India Rapid Women 2022"]
[Site "Kolkota"]
[Date "2022.11.30"]
[Round "5.3"]
[White "Ushenina, Anna"]
[Black "Vantika Agrawal"]
[Result "1-0"]
[ECO "E65"]
[WhiteElo "2454"]
[BlackElo "2362"]
[Annotator "TA"]
[PlyCount "89"]
[EventDate "2022.11.29"]
[EventType "tourn"]
[EventCountry "IND"]
[SourceTitle "playchess.com"]
[Source "ChessBase"]
[SourceQuality "1"]
[TimeControl "900+10"]

{[%evp 18,89,14,17,17,10,9,6,18,0,0,0,0,-15,-13,-6,-16,-37,-25,-44,-20,-15,-6,-13,0,0,36,25,32,50,64,79,180,166,182,142,216,226,269,227,287,218,249,245,226,136,145,133,176,183,168,119,187,182,177,168,276,268,817,318,318,293,287,285,270,259,29956,5306,29975,29976,29997,29998,29998,29999]} 1. d4 {[%emt 0:00:03]} Nf6 {[%emt 0:00:01]} 2. c4 {[%emt 0:00:05]} g6 {[%emt 0:00:01]} 3. g3 {[%emt 0:00:06]} Bg7 {[%emt 0:00:02]} 4. Bg2 {[%emt 0:00:06]} O-O {[%emt 0:00:02]} 5. Nc3 {[%emt 0:00:10]} d6 {[%emt 0:00:02]} 6. Nf3 {[%emt 0:00:03]} c5 {[%emt 0:00:02]} 7. O-O {[%emt 0:00:07]} Nc6 {[%emt 0:00:01]} 8. dxc5 {[%emt 0:00:05]} dxc5 {[%emt 0:00:02]} 9. Bf4 {[%emt 0:00:02]} Nh5 {[%emt 0:00:20][%cal Bf6h5,Bh5g7,Bg7f5][%mdl 32]} 10. Be3 {[%emt 0:00:54]} b6 {[%emt 0:03:08] outshines the older 10...Nd4. E65: King's Indian: Fianchetto: 6...c5 7 0-0 without d5 by White.} 11. Qc1 {[%emt 0:00:35]} Bb7 {[%emt 0:00:14]} 12. Bh6 {[%emt 0:00:15]} Qe8 {[%emt 0:00:35] The position is equal.} 13. Nd5 {[%emt 0:01:28]} Rd8 {[%emt 0:01:11]} (13... Rc8 {is more complex.} 14. g4 Nf6 15. Bxg7 Kxg7 16. Rd1 Nxd5 17. cxd5 Nd4) 14. Bxg7 {[%emt 0:00:23]} Nxg7 {[%emt 0:00:44] [#]} 15. Qc3 $146 {[%emt 0:00:30]} ({Predecessor:} 15. Rd1 f6 16. Qc3 Qf7 17. Kf1 Nf5 18. e3 e6 19. Nf4 g5 20. Nd3 Rd7 21. Nde1 Rxd1 22. Rxd1 {0-1 (54) Fier,A (2573)-Jones,G (2666) Montesilvano 2022}) 15... f6 {[%emt 0:00:35]} 16. a3 {[%emt 0:01:08]} Qf7 {[%emt 0:01:01]} 17. Rfd1 {[%emt 0:00:57]} Nf5 {[%emt 0:00:50]} 18. e3 {[%emt 0:00:49]} e6 {[%emt 0:01:01]} 19. Nf4 {[%emt 0:00:06]} g5 {[%emt 0:00:51]} 20. Nd3 {[%emt 0:03:44]} g4 {[%emt 0:00:44] Prevents b4.} 21. Nd2 {[%emt 0:00:21][%cal Bf3d2,Bd2e4,Be4c5][%mdl 32]} h5 {[%emt 0:03:31]} (21... Nd6 $5) 22. b4 {[%emt 0:00:25]} h4 {[%emt 0:01:00]} 23. Ne4 {[%emt 0:02:27]} Ba8 {[%emt 0:02:04]} 24. bxc5 {[%emt 0:01:23]} bxc5 {[%emt 0:00:02]} (24... Rxd3 $16 25. Rxd3 (25. Qxd3 Ne5 $16) 25... Ne5) 25. Nexc5 $18 {[%emt 0:01:29]} Qe7 {[%emt 0:00:25]} 26. Ne4 {[%emt 0:00:25]} Kf7 {[%emt 0:00:45]} (26... h3 $16 {might work better.} 27. Bh1 Nd6 28. Nxd6 Rxd6) 27. c5 {[%emt 0:00:17]} Rh8 {[%emt 0:00:06]} 28. Rab1 {[%emt 0:00:54]} Rh6 {[%emt 0:00:16]} 29. Nd6+ {[%emt 0:00:21]} Nxd6 {[%emt 0:00:05]} 30. cxd6 {[%emt 0:00:01]} Rxd6 {[%emt 0:00:09]} 31. Nb4 {[%emt 0:00:12] Inhibits h3.} Nxb4 {[%emt 0:00:13]} 32. Bxa8 {[%emt 0:00:02]} Nd5 {[%emt 0:00:13]} 33. Bxd5 {[%emt 0:00:17]} exd5 {[%emt 0:00:05]} 34. Rd4 {[%emt 0:00:07]} (34. Qc8 $18 Qe6 35. Rb7+ Kg6 36. Qc2+ f5 37. Rd4 (37. Rxa7 d4 $16)) 34... hxg3 {[%emt 0:00:13]} (34... Qd7 $16 35. Rdb4 Qe6) 35. hxg3 {[%emt 0:00:04]} Qd7 {[%emt 0:00:10]} 36. Qd3 {[%emt 0:00:25]} Rh8 {[%emt 0:00:13]} (36... f5 {was necessary.} 37. Rdb4 Ke6) 37. Rdb4 {[%emt 0:00:11] And now Rb7 would win.} Qe7 {[%emt 0:00:10]} (37... Qe6 38. Rb7+ Rd7) 38. Rb7 $2 {[%emt 0:00:13]} (38. Qf5 {Threatens to win with Rb7.} Rd7 39. Rb8 (39. Qxg4 Qe6 $18)) 38... Rd7 {[%emt 0:00:01] [#]} 39. Qf5 {[%emt 0:00:05] Inhibits Rh5.} Rxb7 {[%emt 0:00:15]} 40. Qxd5+ {[%emt 0:00:01]} Kg6 {[%emt 0:00:07]} 41. Rxb7 {[%emt 0:00:09]} Qe8 {[%emt 0:00:18]} (41... Rd8 $18 42. Qb3 Rd1+ 43. Qxd1 Qxb7 44. Qxg4+ Kh6 45. Qf4+ Kg6) 42. Rxa7 {[%emt 0:00:17]} (42. Qc4 $142 Qc8 43. Rc7 Qxc7 44. Qxc7 Rh7 45. Qc2+ Kh6 46. Qc4 Rg7 47. Qf4+ Kg6 48. Qxg4+ Kf7 49. Qe4) 42... Rh5 {[%emt 0:00:09]} 43. Qd3+ {[%emt 0:00:05] White mates.} f5 {[%emt 0:00:08]} 44. Qd6+ {[%emt 0:00:06]} Kg5 {[%emt 0:00:13]} 45. Rg7+ {[%emt 0:00:02] Weighted Error Value: White=0.29 (precise) /Black=0.58} 1-0

[Event "4th Tata Steel India Rapid Women 2022"]
[Site "Kolkota"]
[Date "2022.11.30"]
[Round "5.4"]
[White "Savitha Shri B"]
[Black "Koneru, Humpy"]
[Result "0-1"]
[ECO "C42"]
[WhiteElo "2411"]
[BlackElo "2574"]
[Annotator "TA"]
[PlyCount "54"]
[EventDate "2022.11.29"]
[EventType "tourn"]
[EventCountry "IND"]
[SourceTitle "playchess.com"]
[Source "ChessBase"]
[SourceQuality "1"]
[TimeControl "900+10"]

{[%evp 13,54,11,15,20,20,18,17,20,20,0,8,0,6,33,33,33,45,0,-10,-15,-17,-33,-25,-35,-27,-27,-25,-37,70,33,82,-682,-656,-633,-488,-494,-450,-525,-525,-532,-541,-935,-929]} 1. e4 {[%emt 0:00:03]} e5 {[%emt 0:00:02]} 2. Nf3 {[%emt 0:00:01]} Nf6 {[%emt 0:00:03]} 3. Nxe5 {[%emt 0:00:03]} d6 {[%emt 0:00:02]} 4. Nf3 {[%emt 0:00:01]} Nxe4 {[%emt 0:00:03]} 5. Nc3 {[%emt 0:00:02]} Nxc3 {[%emt 0:00:05]} 6. dxc3 {[%emt 0:00:02]} Be7 {[%emt 0:00:12]} 7. Be3 {[%emt 0:00:02]} O-O {[%emt 0:00:06]} 8. Qd2 {[%emt 0:00:03] C42: Petroff Defence: 3 Nxe5 and unusual White 3rd moves.} Nd7 {[%emt 0:00:08]} 9. O-O-O {[%emt 0:00:12]} Nf6 {[%emt 0:00:09]} 10. Bd3 {[%emt 0:00:19] The position is equal.} Re8 {[%emt 0:00:36]} 11. h4 {[%emt 0:01:42] 11.Kb1 is becoming the main line.} Bg4 $5 {[%emt 0:02:34][%mdl 4] A promising side line.} 12. Rde1 {[%emt 0:00:31] [#]} c5 $146 {[%emt 0:00:55][%cal Bc7c5,Bc5c4][%mdl 32]} ({Predecessor:} 12... d5 13. Ng5 Bd6 14. Kb1 c5 15. c4 Qc7 16. f3 Bd7 17. c3 Bg3 18. Bf2 Rxe1+ 19. Bxe1 {0-1 (40) Oomen,A (2105)-Maierhofer,J (2220) ICCF email 2015}) 13. Ng5 {[%emt 0:00:21]} (13. c4 {simplifies} d5 14. Bg5 dxc4 15. Bxc4 Qxd2+ 16. Bxd2 Bd6 17. Ng5) 13... Qa5 {[%emt 0:02:40]} 14. Kb1 {[%emt 0:01:46]} d5 {[%emt 0:00:33]} 15. f3 {[%emt 0:00:43]} (15. h5 $1 $14) 15... Bd7 $11 {[%emt 0:00:14]} 16. g4 {[%emt 0:00:47]} (16. c4 {simplifies} Qxd2 17. Bxd2 h6 18. cxd5 Nxd5 19. Ne4) 16... c4 $1 {[%emt 0:00:33] Against h5} 17. Bf5 {[%emt 0:00:26]} Bxf5 {[%emt 0:01:55]} 18. gxf5 {[%emt 0:00:02]} Bc5 $1 $36 {[%emt 0:01:04][%mdl 2048] White is under pressure.} 19. Bf4 {[%emt 0:06:09]} Rad8 {[%emt 0:02:15]} 20. Be5 {[%emt 0:00:53] [#] Bxf6 is the strong threat.} Ne4 {[%emt 0:03:04]} 21. Nxe4 {[%emt 0:02:36]} dxe4 {[%emt 0:01:01]} (21... Rxe5 $14 {should be considered.} 22. Nxc5 Rxe1+ 23. Rxe1 Qxc5) 22. Qg5 $2 {[%emt 0:00:01][%mdl 8192] Now White is beyond hope.} (22. Qf4 $16 Bb6 23. Rxe4) 22... Rxe5 $19 {[%emt 0:00:20] Black is clearly winning.} 23. fxe4 {[%emt 0:01:36]} f6 {[%emt 0:00:03]} 24. Qg4 {[%emt 0:00:07]} Qb6 {[%emt 0:00:10]} 25. Ka1 {[%emt 0:00:01]} Qc6 {[%emt 0:00:11]} 26. h5 {[%emt 0:00:10]} h6 {[%emt 0:00:06]} 27. Rhg1 {[%emt 0:00:32]} Bxg1 {[%emt 0:00:07] Weighted Error Value: White=0.52/Black=0.22 (precise)} 0-1